bitfinex-derivatives/quotes_ETHF0:USTF0_20260120
["timestamp","ask_amount","ask_price","bid_price","bid_amount"]
[1768914432720,0.36940085,3104.5,3102.8,0.16127]
[1768914432921,0.83138275,3104.4,3102.8,0.16127]
[1768914433131,0.4619819,3104.3,3102.8,0.16127]
[1768914433328,0.36940085,3104.4,3102.8,0.16127]
[1768914433626,0.83072942,3104.3,3102.8,0.16127]
[1768914433829,0.36940085,3104.3,3102.8,0.16127]
[1768914435323,0.36940085,3104.3,3102.9,5.462]
[1768914436319,0.36940085,3104.3,3103.1,0.16126]
[1768914436524,0.36940085,3104.7,3103.1,0.16126]
[1768914437524,0.36940085,3104.5,3102.9,3.225]
[1768914437721,0.36940085,3104.5,3103.2,2.236]
[1768914438832,0.36940085,3104.5,3102.6,3.224]
[1768914439129,0.36940085,3104.5,3103.1,2.236]
[1768914439322,0.36940085,3104.5,3103.0,2.236]
[1768914439628,0.36940085,3104.3,3103.0,2.236]
[1768914443032,0.36940085,3104.3,3103.0,2.235]
[1768914446031,0.36940085,3104.3,3102.7,0.16128]
[1768914446332,0.36940085,3104.3,3102.8,2.234]
[1768914447231,0.35638657,3104.7,3102.9,0.16127]
[1768914447534,0.46042706,3104.6,3103.0,0.16126]
[1768914447734,0.46042706,3104.5,3103.0,0.16126]
[1768914447934,0.35638657,3104.7,3103.0,0.16126]
[1768914448137,0.35638657,3104.7,3103.1,0.45579641]
[1768914448327,0.35638657,3104.7,3103.1,0.16126]
[1768914451441,0.35638657,3104.7,3103.2,2.234]
[1768914454638,0.35638657,3104.5,3102.8,3.224]
[1768914454940,0.35638657,3104.3,3102.6,5.78937341]
[1768914455138,0.46117265,3104.2,3102.7,2.233]
[1768914455337,0.35638657,3104.1,3102.7,2.233]
[1768914456237,0.35638657,3104.1,3102.5,0.16129]
[1768914456444,0.35638657,3104.1,3102.6,2.234]
[1768914456639,0.35638657,3103.9,3102.6,2.234]
[1768914457236,0.35638657,3103.7,3102.6,2.234]
[1768914457437,0.35638657,3103.7,3102.0,5.95069341]
[1768914457637,0.46149017,3103.6,3102.0,3.38532]
[1768914457837,0.35638657,3103.5,3102.1,2.234]
[1768914458644,0.35638657,3103.5,3102.2,2.235]
[1768914459851,0.35638657,3103.5,3102.0,0.16132]
[1768914460044,0.35638657,3103.5,3101.7,18.38937341]
[1768914460350,0.35638657,3103.5,3101.8,2.235]
[1768914462846,0.35638657,3103.5,3101.7,15.824]
[1768914462847,0.35638657,3103.3,3101.7,12.6]
[1768914463062,0.46109475,3103.2,3101.8,2.239]
[1768914463353,0.32890882,3103.1,3101.8,2.239]
[1768914464742,0.32890882,3103.1,3101.6,0.00265065]
[1768914464947,0.32890882,3103.1,3101.7,2.24]
[1768914465550,0.32890882,3103.1,3101.8,2.24]
[1768914466151,0.32890882,3103.1,3101.6,0.00265065]
[1768914466451,0.32890882,3103.1,3101.7,2.24]
[1768914466646,0.32890882,3102.9,3101.6,0.00265065]
[1768914466851,0.32890882,3102.7,3101.6,0.00265065]
[1768914472252,0.32890882,3102.6,3101.1,0.65056041]
[1768914472865,0.32890882,3102.5,3101.1,1.87149535]
[1768914473064,0.33155001,3102.5,3101.1,1.87559459]
[1768914475769,0.33155001,3102.5,3101.1,0.65465965]
[1768914475970,0.33155001,3102.5,3101.1,1.87559459]
[1768914476570,0.33155001,3102.5,3101.4,1.22093494]
[1768914479175,0.33155001,3102.5,3101.1,1.87559459]
[1768914480773,0.33155001,3102.5,3101.2,1.22093494]
[1768914481872,0.35390493,3102.2,3101.1,0.65465965]
[1768914482076,0.00264119,3102.5,3100.1,3.228]
[1768914482077,0.35390493,3101.6,3100.1,1.22093494]
[1768914482268,0.35390493,3101.6,3099.8,0.16143]
[1768914482467,0.35390493,3101.6,3100.3,1.22093494]
[1768914482968,0.35390493,3101.6,3099.8,0.16143]
[1768914483169,0.35390493,3101.6,3100.0,0.65465965]
[1768914483675,0.35390493,3101.6,3099.8,0.16558925]
[1768914483878,0.35390493,3101.6,3100.0,0.65465965]
[1768914484269,0.35390493,3101.6,3099.8,0.16558925]
[1768914484270,0.35390493,3100.9,3099.8,0.00415925]
[1768914484775,0.35390493,3101.5,3099.8,0.00415925]
[1768914484974,0.35390493,3102.3,3099.9,0.30973819]
[1768914485275,0.35390493,3102.1,3099.9,0.30973819]
[1768914485476,0.35390493,3101.9,3099.9,0.30973819]
[1768914485969,0.35390493,3101.9,3099.9,0.96439784]
[1768914486163,0.35390493,3101.7,3099.8,2.24115925]
[1768914486368,0.35390493,3101.7,3099.8,0.00415925]
[1768914486864,0.35390493,3101.7,3099.8,0.31361399]
[1768914487068,0.35390493,3101.7,3100.0,0.97260385]
[1768914487471,0.35390493,3102.1,3100.1,0.3179442]
[1768914487670,0.45914641,3102.0,3100.2,0.3179442]
[1768914487875,0.35390493,3102.0,3100.4,0.65465965]
[1768914488074,0.35390493,3102.0,3100.5,0.65465965]
[1768914488475,0.35390493,3102.0,3100.6,0.65465965]
[1768914488674,0.35390493,3102.0,3100.5,0.65465965]
[1768914489070,0.35390493,3102.0,3100.7,0.65465965]
[1768914489272,0.35390493,3102.0,3100.2,2.7153542]
[1768914489273,0.35390493,3102.0,3100.5,0.65465965]
[1768914489672,0.35390493,3102.0,3100.7,0.65465965]
[1768914489979,0.35390493,3102.0,3100.5,0.65465965]
[1768914490482,0.35390493,3102.0,3100.7,0.65465965]
[1768914490671,0.35390493,3102.0,3100.6,0.65465965]
[1768914491073,0.35390493,3102.0,3100.8,0.65465965]
[1768914491274,0.35390493,3102.0,3100.7,0.65465965]
[1768914491772,0.35390493,3102.0,3100.9,0.65465965]
[1768914491970,0.35390493,3102.4,3100.8,0.65465965]
[1768914492171,0.35390493,3102.4,3100.8,0.31520236]
[1768914492172,0.45973103,3102.3,3100.8,0.31520236]
[1768914492373,0.35390493,3102.4,3101.0,0.65465965]
[1768914492779,0.35390493,3102.4,3101.1,0.65465965]
[1768914492981,0.35390493,3102.4,3101.0,0.65465965]
[1768914493180,0.45964517,3102.3,3101.1,0.65465965]
[1768914493373,0.35390493,3102.4,3101.1,0.65465965]
[1768914493575,0.35390493,3102.2,3100.7,0.16139]
[1768914493775,0.35390493,3102.2,3100.8,2.88965965]
[1768914493971,0.35390493,3102.2,3100.9,0.65465965]
[1768914494182,0.35390493,3102.2,3100.8,2.235]
[1768914494575,0.35390493,3102.2,3101.0,0.65465965]
[1768914494981,0.35390493,3102.2,3101.1,0.65465965]
[1768914495371,0.35390493,3102.2,3101.2,0.65465965]
[1768914495576,0.35390493,3102.2,3101.1,0.65465965]
[1768914495982,0.35390493,3102.2,3101.2,0.65465965]
[1768914496175,0.35390493,3102.2,3101.1,0.65465965]
[1768914496576,0.35390493,3102.2,3101.2,0.65465965]
[1768914496888,0.35390493,3102.0,3100.8,2.235]
[1768914497278,0.35390493,3102.0,3100.9,0.65465965]
[1768914497485,0.46020204,3101.9,3101.0,5.46]
[1768914497687,0.35390493,3102.0,3101.0,5.46]
[1768914497883,0.45707601,3101.9,3100.2,0.16141]
[1768914498188,0.35390493,3102.0,3100.6,0.65465965]
[1768914498375,0.45710579,3101.9,3100.6,0.65465965]
[1768914498577,0.35390493,3102.0,3100.8,0.65465965]
[1768914498777,0.45710444,3101.9,3100.6,0.65465965]
[1768914498979,0.35390493,3102.0,3100.6,0.65465965]
[1768914499182,0.45710465,3101.9,3100.8,0.65465965]
[1768914499381,0.35390493,3102.0,3100.6,0.65465965]
[1768914499586,0.45714078,3101.9,3100.6,0.65465965]
[1768914499785,0.35390493,3102.0,3100.8,0.65465965]
[1768914499982,0.45714031,3101.9,3100.6,0.65465965]
[1768914500188,0.35390493,3102.0,3100.6,0.65465965]
[1768914500489,0.45718208,3101.9,3100.8,0.65465965]
[1768914500692,0.35390493,3102.0,3100.6,0.65465965]
[1768914500988,0.45718192,3101.9,3100.3,5.62141]
[1768914501178,0.35390493,3102.0,3100.7,0.65465965]
[1768914501374,0.45722862,3101.9,3100.7,0.65465965]
[1768914501579,0.35390493,3102.0,3100.9,0.65465965]
[1768914501780,0.45722726,3101.9,3100.7,0.65465965]
[1768914501980,0.35390493,3102.0,3100.7,0.65465965]
[1768914502180,0.45722724,3101.9,3100.9,0.65465965]
[1768914502390,0.35390493,3102.0,3100.7,0.65465965]
[1768914502583,0.45726233,3101.9,3100.7,0.65465965]
[1768914502784,0.35390493,3102.0,3100.9,0.65465965]
[1768914502988,0.45726344,3101.9,3101.0,0.65465965]
[1768914503188,0.35390493,3102.0,3100.7,0.65465965]
[1768914503386,0.45729423,3101.9,3100.7,0.65465965]
[1768914503584,0.35390493,3102.0,3100.9,0.65465965]
[1768914503789,0.45729457,3101.9,3100.9,0.65465965]
[1768914503989,0.35390493,3102.0,3101.2,0.65465965]
[1768914504191,0.45729301,3101.9,3101.0,3.226]
[1768914504390,0.35390493,3102.0,3101.0,3.226]
[1768914504596,0.45731249,3101.9,3101.2,0.65465965]
[1768914504798,0.35390493,3102.0,3101.2,0.65465965]
[1768914505092,0.457313,3101.9,3101.3,0.65465965]
[1768914505296,0.00264119,3102.5,3101.3,0.65465965]
[1768914505297,0.3462758,3102.5,3101.4,2.233]
[1768914505486,0.45736507,3102.4,3101.4,2.233]
[1768914505686,0.45736507,3102.3,3101.4,2.233]
[1768914505895,0.45736507,3102.2,3101.4,2.233]
[1768914506093,0.45736507,3102.1,3101.4,2.233]
[1768914506305,0.3462758,3102.5,3101.9,0.65465965]
[1768914506496,0.3462758,3102.5,3101.7,0.65465965]
[1768914506703,0.00264119,3102.5,3101.4,2.233]
[1768914507000,0.34363461,3103.6,3101.9,0.65465965]
[1768914507191,0.34363461,3103.4,3101.4,2.70772386]
[1768914507388,0.16124,3103.6,3101.5,0.16134]
[1768914507389,0.34363461,3103.2,3101.5,0.16134]
[1768914507584,0.34363461,3103.2,3101.6,1.2211488]
[1768914507792,0.34642066,3103.2,3101.9,0.65465965]
[1768914508393,0.34642066,3103.2,3102.0,0.65465965]
[1768914508595,0.34642066,3103.2,3102.0,0.00387015]
[1768914508794,0.34642066,3103.2,3102.1,0.65465965]
[1768914508989,0.34642066,3103.2,3102.2,3.226]
[1768914509187,0.34642066,3103.2,3102.2,3.88065965]
[1768914509390,0.34642066,3103.2,3102.3,0.65465965]
[1768914510593,0.34642066,3103.2,3102.2,3.226]
[1768914510802,0.34642066,3103.2,3102.3,0.65465965]
[1768914510994,0.34642066,3103.2,3102.2,3.226]
[1768914511194,0.34642066,3103.2,3102.4,0.65465965]
[1768914511702,0.34642066,3103.2,3102.5,0.65465965]
[1768914511895,0.34642066,3103.2,3102.4,0.65465965]
[1768914512404,0.34642066,3103.2,3102.5,0.65465965]
[1768914515407,0.16124,3103.6,3102.7,0.65465965]
[1768914515615,0.16124,3103.6,3102.5,0.65465965]
[1768914516297,0.16124,3103.6,3102.4,2.558409]
[1768914516298,0.1640583,3103.6,3102.6,0.65465965]
[1768914516502,0.1640583,3103.6,3102.5,0.65465965]
[1768914517007,0.1640583,3103.6,3102.6,0.65465965]
[1768914517506,0.34363461,3103.3,3102.0,0.00387015]
[1768914517704,0.34363461,3103.3,3102.1,6.07665965]
[1768914517908,0.34363461,3103.3,3102.2,0.65465965]
[1768914518108,0.34363461,3103.3,3102.3,0.65465965]
[1768914518513,0.34363461,3103.3,3102.4,0.65465965]
[1768914518712,0.34363461,3103.3,3102.3,2.88365965]
[1768914518907,0.34363461,3103.3,3102.3,2.229]
[1768914519114,0.34363461,3103.3,3102.4,0.65465965]
[1768914522522,0.34363461,3103.3,3102.3,2.229]
[1768914522713,0.16125,3103.4,3102.5,0.65465965]
[1768914522914,0.16125,3103.4,3102.0,0.00387015]
[1768914522915,0.43660292,3103.3,3102.3,2.88265965]
[1768914523114,0.16125,3103.4,3102.3,2.88265965]
[1768914523415,0.43658464,3103.3,3102.4,0.65465965]
[1768914523721,0.16125,3103.4,3102.4,0.65465965]
[1768914523921,0.16125,3103.4,3102.5,0.65465965]
[1768914523922,0.43658497,3103.3,3102.5,0.65465965]
[1768914524123,0.16125,3103.4,3102.4,0.65465965]
[1768914524424,0.43658162,3103.3,3102.4,0.65465965]
[1768914524619,0.16125,3103.4,3102.5,0.65465965]
[1768914524827,0.16125,3103.4,3102.6,0.65465965]
[1768914525122,0.16125,3103.4,3102.5,2.88265965]
[1768914525322,0.16125,3103.4,3102.5,2.228]
[1768914525523,0.16125,3103.4,3102.6,0.65465965]
[1768914526124,0.16125,3103.4,3102.7,0.65465965]
[1768914526326,0.16125,3103.4,3102.4,2.88265965]
[1768914526622,0.16125,3103.4,3102.6,0.65465965]
[1768914527227,0.43662234,3103.3,3102.6,0.65465965]
[1768914527418,0.16125,3103.4,3102.7,0.65465965]
[1768914527713,0.43662244,3103.3,3102.6,0.65465965]
[1768914527916,0.16125,3103.4,3102.6,0.65465965]
[1768914528120,0.43662028,3103.3,3102.7,0.65465965]
[1768914528325,0.16125,3103.4,3102.6,0.65465965]
[1768914528527,0.43670274,3103.3,3102.6,0.65465965]
[1768914528727,0.16125,3103.4,3102.7,0.65465965]
[1768914528927,0.43670274,3103.3,3102.6,0.65465965]
[1768914529129,0.16125,3103.4,3102.6,0.65465965]
[1768914529326,0.43679533,3103.3,3102.7,0.65465965]
[1768914529515,0.16125,3103.4,3102.6,0.65465965]
[1768914529721,0.43679507,3103.3,3102.6,0.65465965]
[1768914529929,0.16125,3103.4,3102.8,0.65465965]
[1768914530131,0.43679507,3103.3,3102.6,0.65465965]
[1768914530424,0.16125,3103.4,3102.6,0.65465965]
[1768914530628,0.16125,3103.4,3102.7,0.65465965]
[1768914530629,0.43689544,3103.3,3102.7,0.65465965]
[1768914530930,0.16125,3103.4,3102.6,0.65465965]
[1768914531128,0.43689859,3103.3,3102.6,0.65465965]
[1768914531429,0.16125,3103.4,3102.7,0.65465965]
[1768914531727,0.43703157,3103.3,3102.6,0.65465965]
[1768914532030,0.16125,3103.4,3102.6,0.65465965]
[1768914532332,0.43703198,3103.3,3102.7,0.65465965]
[1768914532525,0.43703198,3103.2,3102.6,0.65465965]
[1768914532830,0.16125,3103.4,3102.6,0.65465965]
[1768914533031,0.43719477,3103.3,3102.7,0.65465965]
[1768914533328,0.43719477,3103.2,3102.6,0.65465965]
[1768914533525,0.16125,3103.4,3102.6,0.65465965]
[1768914533828,0.16125,3103.4,3102.7,0.65465965]
[1768914533829,0.43739862,3103.3,3102.7,0.65465965]
[1768914534032,0.43739862,3103.2,3102.4,2.226]
[1768914534327,0.43764879,3103.1,3102.0,0.00387015]
[1768914534531,0.16125,3103.4,3102.5,0.65465965]
[1768914534718,0.43765548,3103.3,3102.5,0.65465965]
[1768914534920,0.43765548,3103.2,3102.3,5.451]
[1768914535118,0.43765548,3103.1,3102.3,5.451]
[1768914535323,0.43765548,3103.0,3102.6,0.65465965]
[1768914535529,0.16125,3103.4,3102.3,2.225]
[1768914535719,0.43801344,3103.3,3102.3,2.225]
[1768914537434,0.59926344,3103.3,3102.3,2.225]
[1768914537637,0.43801344,3103.2,3102.3,2.225]
[1768914537935,0.43801344,3103.1,3102.3,2.225]
[1768914538133,0.43801344,3103.0,3102.3,2.225]
[1768914538328,0.43801344,3102.9,3102.3,2.225]
[1768914538527,0.43801344,3102.8,3102.3,2.225]
[1768914538726,0.16125,3103.3,3102.3,2.225]
[1768914539027,0.43238296,3103.2,3102.3,2.225]
[1768914539326,0.43238296,3103.1,3102.3,2.225]
[1768914539522,0.43238296,3103.0,3102.3,2.225]
[1768914539722,0.43238296,3102.9,3102.3,2.225]
[1768914539918,0.43238296,3102.8,3102.3,2.225]
[1768914540132,0.16125,3103.3,3102.3,2.225]
[1768914540436,0.59365133,3103.2,3102.0,0.36671098]
[1768914540636,0.16127,3102.9,3102.0,0.00387015]
[1768914540832,0.43239133,3102.8,3102.0,0.00387015]
[1768914541136,0.43239133,3102.7,3102.0,0.00387015]
[1768914541431,0.16127,3102.9,3102.0,0.00387015]
[1768914541632,0.4322864,3102.8,3102.0,0.00387015]
[1768914541819,0.4322864,3102.7,3102.0,0.00387015]
[1768914542023,0.16126,3103.2,3102.0,0.00387015]
[1768914542217,0.42957118,3103.1,3102.0,0.00387015]
[1768914542425,0.42957118,3103.0,3102.0,0.00387015]
[1768914542634,0.42957118,3102.9,3102.0,0.00387015]
[1768914542830,0.42957118,3102.8,3102.0,0.00387015]
[1768914543030,0.42957118,3102.7,3102.0,2.22687015]
[1768914543231,0.16126,3103.2,3102.0,2.22687015]
[1768914543530,0.42952691,3103.1,3102.0,2.22687015]
[1768914543730,0.42952691,3103.0,3102.0,2.22687015]
[1768914543930,0.42952691,3102.9,3102.0,2.22687015]
[1768914544126,0.42952691,3102.8,3102.0,0.00387015]
[1768914544433,0.16126,3103.2,3102.0,0.36671098]
[1768914544734,0.42947743,3103.1,3102.0,0.36671098]
[1768914545031,0.42947743,3103.0,3102.0,0.36671098]
[1768914545232,0.42947743,3102.9,3102.0,0.36671098]
[1768914545433,0.42947743,3102.8,3102.0,0.36671098]
[1768914545628,0.0028183,3103.6,3102.0,0.36671098]
[1768914545835,0.42947586,3103.5,3102.0,0.36671098]
[1768914546034,0.42947586,3103.4,3102.0,0.36671098]
[1768914546224,0.42947586,3103.3,3102.0,0.36671098]
[1768914546420,0.42947586,3103.2,3102.0,0.36671098]
[1768914546635,0.42947586,3103.1,3102.0,0.36671098]
[1768914546835,0.42947586,3103.0,3102.0,0.36671098]
[1768914547039,0.0028183,3103.6,3102.0,0.36671098]
[1768914547336,1.43815354,3103.5,3102.0,0.36671098]
[1768914547527,0.42771128,3103.4,3102.0,0.36671098]
[1768914547833,0.42771128,3103.3,3102.0,0.36671098]
[1768914548026,0.42771128,3103.2,3102.0,0.36671098]
[1768914548226,0.42771128,3103.1,3102.0,0.36671098]
[1768914548426,0.42771128,3103.0,3102.0,0.36671098]
[1768914548625,0.0028183,3103.6,3102.0,0.36671098]
[1768914548831,0.42774018,3103.5,3102.0,0.36671098]
[1768914549036,0.42774018,3103.4,3102.0,0.36671098]
[1768914549224,0.42775143,3103.3,3102.0,0.36671098]
[1768914549536,0.42775143,3103.2,3102.0,0.36671098]
[1768914549745,0.42775143,3103.1,3102.0,0.36671098]
[1768914550036,0.0028183,3103.6,3102.0,0.36671098]
[1768914551032,0.0028183,3103.6,3102.3,1.22003919]
[1768914554341,0.0028183,3103.6,3102.6,1.22003919]
[1768914554544,0.0028183,3103.6,3102.0,0.36671098]
[1768914554841,1.22285749,3103.6,3102.7,2.221]
[1768914556138,0.0028183,3103.6,3102.7,2.221]
[1768914557341,0.0028183,3103.6,3102.7,2.22]
[1768914567754,1.22003919,3103.2,3102.4,2.217]
[1768914568149,1.22003919,3103.5,3102.4,2.217]
[1768914568352,1.22003919,3103.5,3102.1,1.22003919]
[1768914568550,1.22003919,3103.5,3102.2,5.442]
[1768914569353,1.22003919,3103.5,3102.3,5.442]
[1768914570450,0.1640583,3103.6,3102.6,1.22003919]
[1768914574158,0.1640583,3103.6,3102.7,2.216]
[1768914574553,0.1640583,3103.6,3102.6,1.22003919]
[1768914574757,0.1640583,3103.6,3102.7,2.216]
[1768914575257,0.0028183,3103.6,3102.7,2.216]
[1768914578863,0.0028183,3103.6,3102.8,2.215]
[1768914583467,0.0028183,3103.6,3102.6,1.22003919]
[1768914583667,0.0028183,3103.6,3102.7,2.215]
[1768914586765,0.0028183,3103.6,3102.4,1.22003919]
[1768914586970,0.0028183,3103.6,3102.5,5.44]
[1768914590172,0.0028183,3103.6,3102.6,5.44]
[1768914590474,0.0028183,3103.6,3102.7,1.22003919]
[1768914590673,0.0028183,3103.6,3102.4,1.22003919]
[1768914590865,0.0028183,3103.6,3102.5,5.44]
[1768914593379,0.0028183,3103.6,3102.3,0.36684173]
[1768914593576,0.0028183,3103.6,3102.6,5.44]
[1768914593771,0.0028183,3103.6,3102.4,1.22003919]
[1768914593979,1.22285749,3103.6,3102.5,5.44]
[1768914596375,0.0028183,3103.6,3102.5,5.44]
[1768914597180,0.0028183,3103.6,3102.5,6.66003919]
[1768914600187,0.0028183,3103.6,3102.3,0.36684173]
[1768914600386,0.0028183,3103.6,3102.4,6.66003919]
[1768914600887,0.0028183,3103.6,3102.4,5.44]
[1768914604889,0.0028183,3103.6,3102.3,1.58688092]
[1768914605186,0.0028183,3103.6,3102.4,5.44]
[1768914606877,0.0028183,3103.6,3102.3,1.58688092]
[1768914607082,0.40949906,3103.5,3102.4,5.439]
[1768914607282,0.0028183,3103.6,3102.4,5.439]
[1768914607485,0.40954834,3103.5,3102.4,5.439]
[1768914607692,1.22285749,3103.6,3102.5,2.214]
[1768914607892,0.40954866,3103.5,3102.5,2.214]
[1768914608092,1.22285749,3103.6,3102.5,2.214]
[1768914608295,0.40683057,3103.5,3102.5,2.214]
[1768914608494,1.22285749,3103.6,3102.5,2.214]
[1768914608683,0.40681727,3103.5,3102.5,2.214]
[1768914608888,1.22285749,3103.6,3102.5,2.214]
[1768914609090,0.40678806,3103.5,3102.5,2.214]
[1768914609398,1.63458841,3103.6,3102.6,2.214]
[1768914609597,0.40678181,3103.5,3102.6,2.214]
[1768914609895,1.63458841,3103.6,3102.6,2.214]
[1768914610890,0.41454922,3103.6,3102.6,2.214]
[1768914613503,0.40677327,3103.5,3102.6,2.214]
[1768914613697,0.41454922,3103.6,3102.6,2.214]
[1768914613898,0.40677221,3103.5,3102.6,2.214]
[1768914614091,0.41454922,3103.6,3102.6,2.214]
[1768914614295,0.41454922,3103.6,3102.1,0.38311161]
[1768914614296,0.40674518,3103.5,3102.1,0.38311161]
[1768914614496,0.40674332,3103.4,3102.2,2.213]
[1768914614695,0.0028183,3103.6,3102.2,2.213]
[1768914615000,0.0028183,3103.6,3102.3,2.213]
[1768914615001,0.41173092,3103.4,3102.3,2.213]
[1768914618608,0.40666965,3103.3,3102.3,2.213]
[1768914618801,0.41173092,3103.4,3102.3,2.213]
[1768914618999,0.40667942,3103.3,3102.3,2.213]
[1768914619202,0.41173092,3103.4,3102.3,2.213]
[1768914619404,0.40663143,3103.3,3102.2,2.212]
[1768914619603,0.41173092,3103.4,3102.2,2.212]
[1768914619804,0.4066201,3103.3,3102.2,2.212]
[1768914620004,0.41173092,3103.4,3102.2,2.212]
[1768914620206,0.40651963,3103.3,3102.2,2.212]
[1768914620505,0.41173092,3103.4,3102.2,2.212]
[1768914620805,0.40648943,3103.3,3102.2,2.212]
[1768914621007,0.41173092,3103.4,3102.2,2.212]
[1768914621199,0.40648784,3103.3,3102.2,2.212]
[1768914621395,0.41173092,3103.4,3102.2,2.212]
[1768914621595,0.406463,3103.3,3102.2,2.212]
[1768914621805,0.41173092,3103.4,3102.2,2.212]
[1768914622008,0.40646287,3103.3,3102.2,2.212]
[1768914622306,0.41173092,3103.4,3102.2,2.212]
[1768914622507,0.40644757,3103.3,3102.1,2.213]
[1768914622702,0.57298092,3103.4,3102.1,2.213]
[1768914622904,0.40643231,3103.3,3102.1,2.213]
[1768914623102,0.57298092,3103.4,3102.1,2.213]
[1768914623305,0.40638769,3103.3,3102.1,2.213]
[1768914623603,0.57298092,3103.4,3102.1,2.213]
[1768914623811,0.40639333,3103.3,3102.1,2.213]
[1768914624004,0.57298092,3103.4,3102.1,2.213]
[1768914624210,0.40649061,3103.3,3102.1,2.213]
[1768914624404,0.57298092,3103.4,3102.1,2.213]
[1768914624597,0.40645922,3103.3,3102.1,2.213]
[1768914624804,0.57298092,3103.4,3102.1,2.213]
[1768914625003,1.7562168,3103.0,3102.0,0.00387015]
[1768914625211,0.40646034,3102.9,3102.0,0.00387015]
[1768914625408,0.53616938,3103.0,3102.0,0.00387015]
[1768914625709,0.40615562,3102.9,3102.0,0.00387015]
[1768914625907,0.53616938,3103.0,3102.0,0.00387015]
[1768914626110,0.78112274,3102.9,3102.0,0.00387015]
[1768914626319,0.37489938,3102.8,3102.0,0.00387015]
[1768914632618,0.16128,3102.7,3102.0,0.00387015]
[1768914632823,0.53617938,3102.7,3101.1,0.3653253]
[1768914633021,0.37489938,3102.6,3101.1,0.3653253]
[1768914633720,0.37489938,3102.6,3101.1,0.36942836]
[1768914634621,0.0028183,3103.6,3101.1,0.00410306]
[1768914634622,0.37489938,3102.3,3101.1,0.00410306]
[1768914636823,0.37489938,3102.2,3101.1,0.00410306]
[1768914638523,6.321,3103.4,3101.2,1.22004742]
[1768914638524,0.37489938,3102.7,3101.2,1.22004742]
[1768914638722,0.37489938,3102.7,3101.1,0.00410306]
[1768914641327,0.53617938,3102.7,3101.1,0.00410306]
[1768914641524,0.37489938,3102.6,3101.1,0.00410306]
[1768914642812,0.53618938,3102.6,3101.1,0.00410306]
[1768914643217,0.35498087,3102.5,3101.1,0.00410306]
[1768914643925,0.51627087,3102.5,3101.1,0.00410306]
[1768914644226,0.35498087,3102.4,3101.1,0.00410306]
[1768914644418,0.51628087,3102.4,3101.1,0.00410306]
[1768914644620,0.35498087,3102.3,3101.1,0.00410306]
[1768914650722,0.35498087,3102.0,3101.1,0.00410306]
[1768914650926,0.51630087,3102.0,3100.3,0.34347659]
[1768914651126,0.35498087,3101.9,3100.3,0.34347659]
[1768914652027,0.35498087,3101.9,3100.3,0.00418812]
[1768914655825,0.35386615,3101.7,3100.3,0.00418812]
[1768914656433,0.35386615,3101.6,3100.3,0.00418812]
[1768914661039,0.35386615,3101.5,3100.3,0.00418812]
[1768914672945,0.35386615,3101.5,3100.5,1.22147683]
[1768914674844,0.35386615,3101.5,3100.3,0.00418812]
[1768914675044,0.35386615,3101.5,3100.3,1.22566495]
[1768914676548,0.35386615,3101.5,3100.3,0.00418812]
[1768914676848,0.35386615,3101.5,3100.3,1.22566495]
[1768914677656,0.35386615,3101.5,3100.3,0.00418812]
[1768914680161,0.40646359,3101.4,3100.3,0.00418812]
[1768914680353,0.35386615,3101.3,3100.3,0.00418812]
[1768914685658,0.30255721,3101.1,3100.3,0.00418812]
[1768914686162,0.30255721,3100.9,3099.7,1.22147683]
[1768914687071,0.30255721,3100.9,3099.7,1.22415689]
[1768914687962,0.30255721,3100.9,3099.7,0.00268006]
[1768914693367,0.30255721,3100.3,3099.7,0.00268006]
[1768914693574,0.30255721,3099.8,3098.4,15.14853776]
[1768914693871,0.30255721,3099.8,3098.8,1.22147683]
[1768914694077,0.30255721,3099.8,3098.9,13.2434956]
[1768914694271,0.30255721,3099.8,3099.1,13.2434956]
[1768914694475,0.30255721,3099.8,3099.1,0.0034138]
[1768914694668,0.30255721,3099.8,3099.2,13.2434956]
[1768914695073,0.30255721,3099.8,3099.3,13.2434956]
[1768914695274,0.30255721,3099.8,3099.1,0.0034138]
[1768914695275,0.30255721,3099.8,3099.1,13.2469094]
[1768914695478,0.30255721,3099.8,3099.1,0.0034138]
[1768914695677,0.30255721,3099.8,3098.7,2.204]
[1768914695979,0.30255721,3099.8,3098.4,13.2434956]
[1768914696181,0.30255721,3099.5,3098.0,2.204]
[1768914696481,0.30255721,3099.5,3098.6,1.22147683]
[1768914696678,0.30255721,3099.5,3098.6,0.00411877]
[1768914696878,0.30255721,3099.5,3098.8,13.2434956]
[1768914697079,0.30255721,3099.5,3098.9,13.2434956]
[1768914697381,0.30255721,3099.5,3098.8,13.2434956]
[1768914697775,0.30255721,3099.5,3098.9,13.2434956]
[1768914697977,0.16141,3100.3,3098.9,1.22147683]
[1768914698174,0.16141,3100.3,3098.6,0.31359558]
[1768914698375,0.16141,3100.3,3098.9,1.22147683]
[1768914698577,0.16141,3100.3,3098.8,1.22147683]
[1768914699976,0.30255721,3100.2,3098.8,1.22147683]
[1768914700171,1.22147683,3100.1,3098.8,1.22147683]
[1768914700379,0.30255721,3100.0,3098.6,0.00411877]
[1768914700578,1.52403404,3099.6,3098.6,0.00411877]
[1768914700784,0.30255721,3099.6,3098.6,0.00411877]
[1768914701086,0.30255721,3100.1,3098.8,13.2434956]
[1768914701285,0.30255721,3100.1,3098.7,1.22147683]
[1768914702386,0.30255721,3100.1,3098.6,0.00411877]
[1768914702577,0.30255721,3100.1,3098.6,1.2255956]
[1768914702773,0.30255721,3100.1,3098.6,0.00411877]
[1768914702977,0.30255721,3100.1,3098.6,1.2255956]
[1768914703180,1.50618137,3099.9,3098.6,0.00411877]
[1768914703383,0.28470454,3099.8,3098.6,0.00411877]
[1768914703580,0.28470454,3099.8,3098.7,13.2434956]
[1768914703783,0.28470454,3099.8,3098.6,0.00411877]
[1768914703784,1.50618137,3099.6,3098.6,0.00411877]
[1768914703979,0.28470454,3099.5,3098.6,0.00411877]
[1768914704182,1.22147683,3099.2,3097.6,0.16155]
[1768914704387,1.22147683,3099.6,3098.0,1.22147683]
[1768914704388,0.28470454,3099.1,3098.0,1.22147683]
[1768914704588,0.28470454,3099.7,3098.3,1.22147683]
[1768914705091,0.28470454,3099.7,3098.0,0.27320332]
[1768914705288,1.50618137,3099.5,3098.0,1.22446703]
[1768914705489,0.28470454,3099.4,3098.0,1.22446703]
[1768914705692,0.28470454,3099.4,3098.3,1.22147683]
[1768914705885,0.00376137,3099.7,3098.3,1.22147683]
[1768914706083,0.00376137,3099.7,3098.5,13.2434956]
[1768914706481,0.00376137,3099.7,3098.6,13.2434956]
[1768914706785,0.28846591,3099.7,3098.4,13.2434956]